Cogmind - Beta 11.1 @@@ ROGUE MODE // 2022.07.13 @ 22:40:01 Player: Rainynight Result: Destroyed by as-14462 with Assembled Blade Performance ------------- Evolutions (0) 0 Regions Visited (3) 600 Robots Destroyed (4) 20 Value Destroyed (19) 19 Prototype IDs (0) 0 Alien Tech Used (0) 0 Bonus (-183) -183 TOTAL SCORE: 456 Bonus ------- Friendly Fire -183 Cogmind --------- Core Integrity 0/250 Matter 300/300 Energy 99/100 System Corruption 0% Temperature Cool (0) Movement Core (50) Location -10/Exiles Parts ------- > --- POWER (1) -------- (None) > --- PROPULSION (2) --- (None) > --- UTILITY (2) ------ (None) > --- WEAPON (2) ------- Scythe > --- INVENTORY (5) ---- (None) Peak State ------------ > --- POWER ------------ (None) > --- PROPULSION ------- Aluminum Leg > --- UTILITY ---------- Improved Terrain Scanner Target Analyzer > --- WEAPON ----------- Scythe Scythe > --- INVENTORY -------- (None) [Rating: 13] Favorites ----------- Power None Propulsion Aluminum Leg Leg Aluminum Leg Utility Improved Terrain Scanner Device Improved Terrain Scanner Processor Target Analyzer Weapon Scythe Slashing Weapon Scythe Build | -11 -10 -10 -10 ------- Run | Scr Mat Min Exi Slots Evolved . | . . . . Power . | . . . . Propulsion . | . . . . Utility . | . . . . Weapon . | . . . . Parts Attached 5 | . . 5 . Power . | . . . . Engine . | . . . . Core . | . . . . Reactor . | . . . . Propulsion 1 | . . 1 . Treads . | . . . . Leg 1 | . . 1 . Wheel . | . . . . Hover . | . . . . Flight . | . . . . Utility 2 | . . 2 . Device 1 | . . 1 . Storage . | . . . . Processor 1 | . . 1 . Hackware . | . . . . Protection . | . . . . Artifact . | . . . . Weapon 2 | . . 2 . Energy Gun . | . . . . Energy Cannon . | . . . . Ballistic Gun . | . . . . Ballistic Cannon . | . . . . Launcher . | . . . . Special Weapon . | . . . . Impact Weapon . | . . . . Slashing Weapon 2 | . . 2 . Piercing Weapon . | . . . . Special Melee Weapon . | . . . . Unidentified Prototypes . | . . . . Parts Lost 4 | . . 1 3 Power . | . . . . Propulsion 1 | . . . 1 Utility 2 | . . 1 1 Weapon 1 | . . . 1 Highest Loss Streak 3 | . . 1 3 To Critical Strikes . | . . . . Average Slot Usage (%) 57 | . . 61 54 Leg 10 | . . 11 11 Device 10 | . . 10 14 Processor 9 | . . 12 . Slashing Weapon 25 | . . 27 28 Naked Turns 30 | . 25 5 . Heaviest Build 5 | . . 5 5 Greatest Support 10 | 3 3 10 10 Greatest Overweight (x) 1 | . . 1 . Average Overweight (x) . | . . . . Largest Inventory Capacity 5 | 5 5 5 5 Average Capacity 5 | 5 5 5 5 Most Carried . | . . . . Average Carried . | . . . . Final Capacity 5 | 5 5 5 5 Final Carried . | . . . . Class Distribution -------------------- 100% | Mutant Dominant Class ---------------- Mutant | -10/Materials Mutant | -10/Mines Mutant | -10/Exiles Resources | -11 -10 -10 -10 ----------- Run | Scr Mat Min Exi Matter Collected 242 | . . 242 . Remotely . | . . . . Salvage Created 145 | . . 145 . Parts 15 | . . 15 . Haulers Intercepted . | . . . . Recyclers Shooed . | . . . . Parts Field Recycled . | . . . . Retrieved Matter . | . . . . Parts Self-Destructed . | . . . . Prevented . | . . . . Kills | -11 -10 -10 -10 ------- Run | Scr Mat Min Exi Combat Hostiles Destroyed 2 | . . 2 . Melee 2 | . . 2 . Classes Destroyed 5 | . . 5 . Worker 1 | . . 1 . Builder 1 | . . 1 . Tunneler 1 | . . 1 . Recycler 1 | . . 1 . Assembled 2 | . . 2 . Best Kill Streak 3 | . . 3 . Combat Bots Only 2 | . . 2 . Max Kills in Single Turn 1 | . . 1 . Gunslinging . | . . . . Exploded . | . . . . Melee 1 | . . 1 . Uniques/NPCs Destroyed . | . . . . Combat | -11 -10 -10 -10 -------- Run | Scr Mat Min Exi Damage Taken 483 | . . 134 349 Core 258 | . . 56 202 Absorbed by Shields . | . . . . Core Remaining (%) 100 | 100 . . . Volleys Fired . | . . . . Largest . | . . . . Hottest . | . . . . Shots Fired . | . . . . Gun . | . . . . Cannon . | . . . . Launcher . | . . . . Special . | . . . . Kinetic . | . . . . Thermal . | . . . . Explosive . | . . . . Electromagnetic . | . . . . Robot Hit Streak . | . . . . Robot Miss Streak . | . . . . Penetration Max . | . . . . Secondary Targets . | . . . . Shots Hit Robots 13 | . . 7 6 Core Hits 6 | . . 6 . Critical Kills . | . . . . Critical Parts Destroyed . | . . . . Critical Strikes . | . . . . Melee Attacks 18 | . . 11 7 Impact . | . . . . Slashing 18 | . . 11 7 Piercing . | . . . . Sneak Attacks 6 | . . 5 1 Combat Hostiles . | . . . . Follow-up Attacks 3 | . . 2 1 Damage Inflicted 609 | . . 393 216 Guns . | . . . . Cannons . | . . . . Explosions . | . . . . Melee 609 | . . 393 216 Ramming . | . . . . Kinetic . | . . . . Thermal . | . . . . Explosive . | . . . . Electromagnetic . | . . . . Impact . | . . . . Slashing 609 | . . 393 216 Piercing . | . . . . Highest Corruption . | . . . . Average Corruption . | . . . . Corruption Purged . | . . . . Corruption Blocked . | . . . . Overload Shots . | . . . . Overflow Damage 22 | . . 22 . Projectiles . | . . . . Explosions . | . . . . Melee 22 | . . 22 . Knockbacks . | . . . . Impact . | . . . . Kinetic . | . . . . Secondary . | . . . . Self-Inflicted Damage . | . . . . Shots . | . . . . Rammed . | . . . . Targets Rammed . | . . . . Kicked . | . . . . Crushed . | . . . . Highest Temperature . | . . . . Average Temperature . | . . . . Received Heat Transfer 40 | . . 40 . Siege Activations . | . . . . Robots Corrupted . | . . . . Combat Hostiles . | . . . . Parts Fried . | . . . . Impact Corruptions . | . . . . Robots Melted . | . . . . Combat Hostiles . | . . . . Parts Melted . | . . . . Heat Transferred . | . . . . Parts Sabotaged . | . . . . Parts Stolen . | . . . . Parts Stripped . | . . . . Power Chain Reactions . | . . . . Missiles Intercepted . | . . . . Alert | -11 -10 -10 -10 ------- Run | Scr Mat Min Exi Peak Influence 30 | . . 30 . Initial . | . . . . Average 17 | . . 19 . Maximum Alert Level . | . . . . Low Security (%) 100 | 100 100 100 . Level 1 . | . . . . Level 2 . | . . . . Level 3 . | . . . . Level 4 . | . . . . Level 5 . | . . . . High Security . | . . . . Max Security . | . . . . Squads Dispatched 1 | . . 1 . Investigation 1 | . . 1 . Extermination . | . . . . Reinforcement . | . . . . Assault . | . . . . Garrison . | . . . . Intercept . | . . . . Searches Triggered . | . . . . Construction Impeded . | . . . . Haulers Reinforced . | . . . . Active Scanning Responses . | . . . . Cargo Convoy Interrupts . | . . . . Stealth | -11 -10 -10 -10 --------- Run | Scr Mat Min Exi Distress Signals . | . . . . Communications Jammed . | . . . . Distress Signals . | . . . . Times Spotted 18 | . . 10 8 Peak Tracking Total 9 | . . 9 9 Tactical Retreats 2 | . . 2 . Traps | -11 -10 -10 -10 ------- Run | Scr Mat Min Exi Traps Triggered . | . . . . Indirectly . | . . . . Trap Hack Attempts . | . . . . Triggered . | . . . . Disarmed . | . . . . Reprogrammed . | . . . . Reused . | . . . . Traps Extracted . | . . . . Installed . | . . . . Triggered 1 | . . 1 . Machines | -11 -10 -10 -10 ---------- Run | Scr Mat Min Exi Machines Disabled . | . . . . Max in Single Turn . | . . . . Machines Sabotaged . | . . . . Garrisons Compromised . | . . . . Overloaded Fab Kills . | . . . . Hacking | -11 -10 -10 -10 --------- Run | Scr Mat Min Exi Machines Accessed 1 | . . 1 . Terminals . | . . . . Fabricators . | . . . . Repair Stations . | . . . . Recycling Units . | . . . . Scanalyzers . | . . . . Garrison Access . | . . . . Total Hacks 1 | . . 1 . Successful 1 | . . 1 . Failed . | . . . . Catastrophic . | . . . . Database Lockouts . | . . . . Manual . | . . . . Terminals . | . . . . Fabricators . | . . . . Repair Stations . | . . . . Recycling Units . | . . . . Scanalyzers . | . . . . Garrison Access . | . . . . Terminal Hacks 1 | . . 1 . Open Door 1 | . . 1 . Fabricator Hacks . | . . . . Repair Station Hacks . | . . . . Recycling Unit Hacks . | . . . . Scanalyzer . | . . . . Garrison Access Hacks . | . . . . Unauthorized Hacks . | . . . . Terminals . | . . . . Fabricators . | . . . . Repair Stations . | . . . . Recycling Units . | . . . . Scanalyzers . | . . . . Garrison Access . | . . . . Data Cores Recovered . | . . . . Used . | . . . . Hacking Detections . | . . . . Full Trace Events . | . . . . Feedback Events . | . . . . Feedback Blocked . | . . . . Robot Schematics Acquired . | . . . . Robots Built . | . . . . Authchips . | . . . . Time . | . . . . Total Robot Build Rating . | . . . . Part Schematics Acquired . | . . . . Parts Built . | . . . . Authchips . | . . . . Time . | . . . . Total Part Build Rating . | . . . . Parts Repaired . | . . . . Time . | . . . . Parts Recycled . | . . . . Recycled Matter . | . . . . Retrieved Matter . | . . . . Retrieved Components . | . . . . Parts Scanalyzed . | . . . . Part Schematics Acquired . | . . . . Parts Damaged . | . . . . Bothacking | -11 -10 -10 -10 ------------ Run | Scr Mat Min Exi Used RIF Installer . | . . . . Robots Hacked . | . . . . Non-combat . | . . . . Combat . | . . . . Robot Hacks Applied . | . . . . Relay Couplers Released . | . . . . Fabnet Peak Effective % . | . . . . Robots Rewired . | . . . . Allies Hacked . | . . . . Hacks Repelled . | . . . . Allies | -11 -10 -10 -10 -------- Run | Scr Mat Min Exi Total Allies . | . . . . Largest Group . | . . . . Highest-Rated Group . | . . . . Highest-Rated Ally . | . . . . Total Orders . | . . . . Ally Attacks . | . . . . Total Damage . | . . . . Kills . | . . . . Allies Corrupted . | . . . . Allies Melted . | . . . . Intel | -11 -10 -10 -10 ------- Run | Scr Mat Min Exi Robot Analysis Total . | . . . . Derelict Logs Recovered 1 | . . 1 . Drone Launches . | . . . . Drone Recoveries . | . . . . Exploration | -11 -10 -10 -10 ------------- Run | Scr Mat Min Exi Turns Passed 385 | 9 25 296 55 Spaces Moved 340 | 18 49 239 34 Core 125 | 18 49 57 1 Treads . | . . . . Legs 215 | . . 182 33 Wheels . | . . . . Hover . | . . . . Flight . | . . . . Fastest Speed 50 | 50 50 50 50 Average Speed 101 | 50 50 113 117 Slowest Speed 120 | 50 50 120 120 Overloaded Moves . | . . . . Propulsion Burnouts . | . . . . Robots Hopped . | . . . . Cave-ins Triggered . | . . . . Exploration Rate (%) 19 | 3 18 47 11 Regions Visited 3 Branch Regions 2 Pre-discovered Areas . | . . . . Known Exits Taken . | . . . . Unknown Exits Taken 3 | 1 1 1 . Scrap Searched 1 | . . 1 . Spaces Dug . | . . . . Terrain Destroyed . | . . . . Melee . | . . . . Projectile . | . . . . AOE . | . . . . Terrain Rammed . | . . . . Walls Destroyed . | . . . . Machines Disabled . | . . . . Actions | -11 -10 -10 -10 --------- Run | Scr Mat Min Exi Total 355 | 17 48 250 40 Wait . | . . . . Move 337 | 17 48 238 34 Hop . | . . . . Pick Up . | . . . . Fast Attach 5 | . . 5 . Attach . | . . . . Detach . | . . . . Swap . | . . . . Drop . | . . . . Fire . | . . . . Melee 13 | . . 7 6 Ram . | . . . . Kick . | . . . . Crush . | . . . . Escape Stasis . | . . . . Rewire . | . . . . Trap . | . . . . Miscellaneous . | . . . . Route ------- -11/Scrapyard -10/Materials -10/Mines (discovered 2 exits: [*Mat] / [*Exi]) -10/Exiles History --------- Turn | Location | Event 2 | -11/Scrapyard | Discovered new exit (range 16) 10 | -11/Scrapyard | Entered Materials 29 | -10/Materials | Discovered new exit (range 11) 35 | -10/Materials | Entered Mines 38 | -10/Mines | Met a Derelict shopkeep closing up shop 85 | -10/Mines | Received a Rocket Launcher from a helpful Derelict 214 | -10/Mines | Discovered new exit (range 5) 249 | -10/Mines | Learned Materials garrison access intel 262 | -10/Mines | Assembled infested the area 304 | -10/Mines | Build established: Mutant 326 | -10/Mines | Deemed a non-threat by the Exiles lab entrance 326 | -10/Mines | Discovered new exit (range 5) 331 | -10/Mines | Entered Exiles 361 | -10/Exiles | Met 8R-AWN 372 | -10/Exiles | Attacked by the Exiles 382 | -10/Exiles | Core integrity fell below 50% 385 | -10/Exiles | Core integrity fell below 20% 386 | -10/Exiles | Destroyed by as-14462 with Assembled Blade Last Messages --------------- 00377_ HV Slug penetrates Wall. 00377_ Aluminum Leg destroyed. 00379_ Penetrated by HV Slug. 00379_ HV Slug penetrates Wall. 00379_ Penetrated by HV Slug. 00379_ HV Slug penetrates Wall. 00380_ Wall collapses. 00381_ Penetrated by HV Slug. 00381_ Imp. Terrain Scanner destroyed. 00381_ HV Slug penetrates Earth. 00381_ Penetrated by HV Slug. 00382_ Knocked back. 00384_ Penetrated by HV Slug. 00384_ HV Slug penetrates Wall. 00384_ HV Slug penetrates as-68094. 00384_ as-68094 suffers critical hit (Destroy). 00384_ HV Slug penetrates as-67829. 00384_ as-67829 suffers critical hit (Destroy). 00384_ as-67829 destroyed. 00384_ Scythe destroyed. Map ----- +----------------------------------------------------+ | ?????????????????????????????????????????????????? | | ?????????????????????????????????????????????????? | | ?????????????????????????????????????????????????? | | ?????????????????????????????????????????????????? | | ?????????????????????????????????????????????????? | | ?????????????????????????????????????????????????? | | ?????????????????????????????????????????????????? | | ?????????????????????????????????????????????????? | | ?????????????????????????????????????????????????? | | ?????????????????????????????????????????????????? | | ?????????????????????????????????????????????????? | | ?????????????????????????????????????????????????? | | ?????????????????????????????????????????????????? | | ?????????????????????????????????????????????????? | | ?????????????????????????????????????????????????? | | ?????????????????????????????????????????????????? | | ?????????????????#???????????????????????????????? | | ?????????????????????????????????#???????????????? | | ?????????????????????????????????????????????? | | ?????????????????????????#???????????????????? | | ?????????????????????????????????????????????# # | | ??????????????????????????????????#????#???## # | | ???????????????????????????????????????????# | | ????????????????????#??#####????#??????????# | | ??????????????????????##" #??????????????## | | ??????????????????????#"g@ #?????????????## #? | | ?????????????????????##" aa##???#????????# #? | | ???????????????????### aaa###????????### #?? | | ???????????????????# ########## #?? | | ????????????????#??# #""""## #??? | | ??????????????????# * ##?? | | ?????????????? #; * #?? | | ????????????? #### ##? | | ????????????? ""??#"""""##;# ## | | ????????????? #"""#??#######?#;### * | | ??????????????a #####????????????# ?##### | | ?????????????? #??????????????#???? ????### | | ????????????????????????????????????? ?????### | | ?????????????????????????????????????????????### | | ??????????????????????????????????????????#???#" | | ??????????????????????????????#?#?????????????#### | | ?????????????????????????#???????????????????????# | | ?????????????????????????????????????????????????# | | ?????????????????????????????????????????????????? | | ?????????????????????????????????????????????????? | | ?????????????????????????????????????????????????# | | ?????????????????????????????????????????????????? | | ?????????????????????????????????????????????????? | | ?????????????????????????????????????????????????? | | ?????????????????????????????????????????????????? | +----------------------------------------------------+ Best States ------------- Heat Dissipation 25 Energy Generation 5 Energy Capacity 100 Matter Stores 300 Matter Capacity 300 Sight Range 16 Terrain Scan Range 16 Terrain Scan Density 10 Evasion (%) 55 Target Analysis 5 Item Schematics ----------------- None Robot Schematics ------------------ None Fabricated ------------ Nothing Alien Tech Used ----------------- None Achievements -------------- None Challenges ------------ None Game ------ Seed GaussImprinterFlakker Manual? 0 Play Time 00:03:07 Cumulative 118.4 hours Start 2022.07.13 @ 22:37:12 End 2022.07.13 @ 22:40:01 Sessions 1 Manual Loads 0 Difficulty Rogue Special Mode None Game No. 157 Rogue 157 Adventurer 0 Explorer 0 Win Type - Total 5 Types 5/0/0/0/0/0/0/0/0 Lore% 59 Gallery% 63 Achievement% 53 Wizard Run 0 Options --------- ASCII 1 Keyboard 1 Movement Numpad Keybinds 0 Fullscreen 1 Font 18/X11 Map View 76x50 Tactical HUD 1 Map Filters NONE Filters NONE Steam 1 RUN: 02df46b1-4f1c-448c-88a1-df48ad9bda17